[Event "Czech Open-Rapid 2022"]
[Site "Pardubice"]
[Date "2022.07.21"]
[Round "6.36"]
[White "Pacl, Vaclav"]
[Black "Rakhmangulova, Iulia"]
[Result "1-0"]
[ECO "A05"]
[WhiteElo "2036"]
[BlackElo "1904"]
[Annotator "TA"]
[PlyCount "69"]
[EventDate "2022.07.20"]
[EventType "swiss"]
[EventCountry "CZE"]
[SourceTitle "playchess.com"]
[Source "ChessBase"]
[SourceQuality "1"]
[TimeControl "1200+10"]

{[%evp 19,69,64,74,39,51,43,68,54,58,60,76,39,47,44,45,56,57,44,54,27,41,38,52,18,36,36,37,25,60,50,57,60,59,59,82,43,45,41,49,37,45,39,48,18,23,0,31,0,83,18,140,137]} 1. Nf3 {[%emt 0:00:03]} Nf6 {[%emt 0:00:01]} 2. b3 {[%emt 0:00:01]} g6 {[%emt 0:00:01]} 3. Bb2 {[%emt 0:00:01]} Bg7 {[%emt 0:00:01]} 4. g3 {[%emt 0:00:01]} O-O {[%emt 0:00:04]} 5. Bg2 {[%emt 0:00:01]} d6 {[%emt 0:00:13]} 6. d4 {[%emt 0:00:05]} c5 {[%emt 0:00:18]} 7. O-O {[%emt 0:00:07]} cxd4 {[%emt 0:00:07]} 8. Nxd4 {[%emt 0:00:06][%cal Bf3d4,Bd4c2,Bc2e3,Be3d5][%mdl 32]} a6 {[%emt 0:00:17]} 9. c4 {[%emt 0:00:07]} Qc7 {[%emt 0:00:13]} 10. Nc3 {[%emt 0:00:15]} Nc6 {[%emt 0:00:07]} 11. Nc2 {[%emt 0:00:22] E65: King's Indian: Fianchetto: 6...c5 7 0-0 without d5 by White.} (11. Rc1 $5 {[%cal Rc3d5]}) 11... Bd7 {[%emt 0:02:20]} 12. e4 {[%emt 0:00:53]} Bg4 {[%emt 0:00:41] [#]} 13. f3 $146 {[%emt 0:00:34] White is slightly better.} ({Predecessor:} 13. Qd2 Rfc8 14. Ne3 Qa5 15. h3 Be6 16. Rad1 Rab8 17. f4 b5 18. f5 Bd7 19. Ncd5 Qxd2 20. Rxd2 Nxd5 21. cxd5 {1-0 (47) Ordaz Valdes,L (2284)-Catala,I (2136) Holguin 2008}) 13... Bd7 {[%emt 0:00:46][%cal Ob7b5]} 14. Ne3 {[%emt 0:00:05]} Rad8 {[%emt 0:01:40]} 15. Ncd5 {[%emt 0:00:27]} Nxd5 {[%emt 0:00:38]} 16. Nxd5 {[%emt 0:00:02]} Qc8 {[%emt 0:00:07]} 17. Bxg7 {[%emt 0:00:07]} Kxg7 {[%emt 0:00:02]} 18. Rc1 {[%emt 0:01:56]} Bh3 {[%emt 0:00:54]} 19. Qd2 {[%emt 0:00:50]} Bxg2 {[%emt 0:00:34]} 20. Kxg2 {[%emt 0:00:02]} e6 {[%emt 0:01:07]} 21. Qb2+ {[%emt 0:00:20]} f6 {[%emt 0:00:30]} 22. Rfd1 {[%emt 0:01:10][%cal Bf1d1,Bd1d2,Bd2c2][%mdl 32]} Rf7 {[%emt 0:03:49]} ({Much less strong is} 22... exd5 23. cxd5 Qa8 24. dxc6) 23. Rd2 {[%emt 0:00:47]} exd5 {[%emt 0:01:53]} 24. cxd5 {[%emt 0:00:03]} Rc7 {[%emt 0:00:07] [#] aiming for ...Ne5.} 25. dxc6 {[%emt 0:03:41]} Rxc6 {[%emt 0:00:53]} 26. Rxc6 {[%emt 0:00:08]} Qxc6 $14 {[%emt 0:00:22][%mdl 4096] Endgame KQR-KQR} 27. Rc2 {[%emt 0:00:05]} Qb6 {[%emt 0:00:21]} 28. Qc3 {[%emt 0:00:07]} Rd7 {[%emt 0:00:28] Prevents Qc7.} 29. Qc4 {[%emt 0:01:24]} Re7 {[%emt 0:02:01]} 30. h4 {[%emt 0:00:44]} h5 {[%emt 0:00:57]} 31. Qc8 {[%emt 0:03:45]} Qa5 {[%emt 0:01:04]} 32. Qb8 {[%emt 0:01:24]} Qe5 {[%emt 0:01:00]} 33. Rc8 {[%emt 0:00:46] Intending Rh8 and mate.} Qe6 {[%emt 0:00:17]} (33... Qb2+ $11 {remains equal.} 34. Kh3 Qe2) 34. Rd8 {[%emt 0:02:04] White is more active.} ({White should play} 34. Rh8 $16 {[%csl Gh8][%cal Rb8f8]} Qf7 35. Rd8) 34... Rd7 {[%emt 0:00:26] [#]} (34... f5 $1 $11) 35. Qc8 $1 {[%emt 0:00:36] Weighted Error Value: White=0.20 (precise) /Black=0.19 (very precise)} ({Don't play} 35. Rh8 $6 Qf7 $14) 1-0

[Event "Czech Open-Rapid 2022"]
[Site "Pardubice"]
[Date "2022.07.21"]
[Round "6.37"]
[White "Bouska, Jiri"]
[Black "Mikolas, Petr"]
[Result "1-0"]
[ECO "C01"]
[WhiteElo "2157"]
[BlackElo "1555"]
[Annotator "TA"]
[PlyCount "43"]
[EventDate "2022.07.20"]
[EventType "swiss"]
[EventCountry "CZE"]
[SourceTitle "playchess.com"]
[Source "ChessBase"]
[SourceQuality "1"]
[TimeControl "1200+10"]

{[%evp 12,43,25,20,29,15,39,16,28,0,20,3,19,12,16,0,35,40,276,275,1283,1283,1280,327,1282,1282,29994,29995,29995,29996,29996,29997,29997,29998]} 1. e4 {[%emt 0:00:02]} e6 {[%emt 0:00:16]} 2. d4 {[%emt 0:00:06]} d5 {[%emt 0:00:01]} 3. exd5 {[%emt 0:00:01]} exd5 {[%emt 0:00:03]} 4. Nf3 {[%emt 0:00:02]} c6 {[%emt 0:00:03]} 5. Bd3 {[%emt 0:00:04]} Bd6 {[%emt 0:00:02]} 6. O-O {[%emt 0:00:13]} Ne7 {[%emt 0:00:01]} 7. Re1 {[%emt 0:00:17]} O-O {[%emt 0:00:02] C01: French: Exchange Variation.} 8. Bg5 {[%emt 0:00:08]} f6 {[%emt 0:00:08]} 9. Bh4 {[%emt 0:00:05]} Nf5 {[%emt 0:01:46] The position is equal.} 10. Nbd2 {[%emt 0:00:20] [#]} Qc7 $146 {[%emt 0:00:25]} ({Predecessor:} 10... Na6 11. c3 Nc7 12. Qc2 g6 13. Bg3 Nxg3 14. hxg3 Rf7 15. c4 Bf8 16. c5 Re7 17. Rxe7 Qxe7 18. b4 Bd7 19. Re1 Qf7 20. Nb3 Re8 {0-1 (20) Schulze,P (2121)-Paap,M (2234) ICCF email 2018}) 11. Nf1 {[%emt 0:00:24]} Nxh4 {[%emt 0:00:49]} (11... Na6 {is more complex.} 12. c4 Nb4 13. c5 Bf4) 12. Nxh4 {[%emt 0:00:03][%cal Od3h7] Bxh7+! is the strong threat.} g6 {[%emt 0:00:22]} 13. c3 {[%emt 0:02:36]} Bd7 {[%emt 0:09:13]} 14. Qc2 {[%emt 0:05:12][%cal Od3g6] [#] And now Bxg6! would win.} Na6 $2 {[%emt 0:01:47] This costs Black the game.} (14... Rf7 $14) 15. Bxg6 $1 $18 {[%emt 0:00:54]} hxg6 {[%emt 0:00:02]} (15... f5) 16. Qxg6+ {[%emt 0:00:02]} Kh8 {[%emt 0:00:01]} 17. Qh6+ {[%emt 0:00:07]} Kg8 {[%emt 0:00:05]} 18. Ng6 {[%emt 0:00:32] Intending Qh8+ and mate.} f5 {[%emt 0:02:21]} 19. Ne7+ {[%emt 0:01:02] White mates.} Bxe7 {[%emt 0:00:36]} 20. Rxe7 {[%emt 0:00:02][%csl Gh6][%cal Re7g7]} Rf7 {[%emt 0:00:09]} 21. Qg6+ {[%emt 0:00:02][%mdl 64] [#] Deflection, Double Attack} Kh8 {[%emt 0:00:01]} 22. Rxf7 {[%emt 0:00:08] Weighted Error Value: White=0.10 (very precise) /Black=0.84} 1-0

[Event "Czech Open-Rapid 2022"]
[Site "Pardubice"]
[Date "2022.07.21"]
[Round "6.38"]
[White "Kroulik, Vaclav"]
[Black "Postl, Petr"]
[Result "0-1"]
[ECO "B00"]
[WhiteElo "1749"]
[BlackElo "1900"]
[Annotator "TA"]
[PlyCount "56"]
[EventDate "2022.07.20"]
[EventType "swiss"]
[EventCountry "CZE"]
[SourceTitle "playchess.com"]
[Source "ChessBase"]
[SourceQuality "1"]
[TimeControl "1200+10"]

{[%evp 13,56,15,25,16,32,30,56,-16,22,2,6,7,8,22,21,-63,-85,-87,-29,-23,-9,-12,-4,-44,-47,-43,-17,-16,-20,-135,-145,-344,-281,-1130,-1125,-1152,-1033,-1243,-1200,-1137,-1109,-29987,-29988,-29995,-29996]} 1. e4 d6 {[%emt 0:00:03]} 2. d4 {[%emt 0:00:05]} Nf6 {[%emt 0:00:02]} 3. Bd3 {[%emt 0:00:09]} g6 {[%emt 0:00:03]} 4. Nf3 {[%emt 0:00:13]} Bg7 {[%emt 0:00:02]} 5. c3 {[%emt 0:00:09]} O-O {[%emt 0:00:10]} 6. O-O {[%emt 0:00:02]} Nc6 {[%emt 0:00:34]} 7. Bg5 {[%emt 0:00:26]} h6 {[%emt 0:01:04]} 8. Bh4 {[%emt 0:00:23] B07: Pirc Defence: Miscellaneous Systems.} Nh5 {[%emt 0:00:34] [#]} 9. Qd2 $146 {[%emt 0:00:49]} ({Predecessor:} 9. Nbd2 Qe8 10. Ne1 e5 11. d5 Ne7 12. c4 Nf4 13. Bc2 f5 14. f3 g5 15. Bf2 {0-1 (28) Chehlov,A (2556)-Bezgodov,A (2546) St Petersburg 2004}) 9... g5 {[%emt 0:00:23] [#]} 10. Bg3 {[%emt 0:00:08]} (10. Nxg5 $1 $14 hxg5 11. Qxg5) 10... Nxg3 {[%emt 0:00:04]} 11. hxg3 {[%emt 0:00:07]} e5 {[%emt 0:00:02][%cal Re5d4]} 12. d5 {[%emt 0:00:27]} Ne7 {[%emt 0:00:06]} 13. Na3 {[%emt 0:00:34]} f5 {[%emt 0:00:20]} 14. Nc2 {[%emt 0:00:20]} (14. exf5 $11 Nxf5 15. Qe2) 14... f4 $15 {[%emt 0:00:46]} 15. gxf4 {[%emt 0:00:28]} gxf4 {[%emt 0:00:15]} (15... exf4 $17 {And now ...Ng6 would win.} 16. Ncd4 Qe8) 16. Rfe1 {[%emt 0:01:00]} Ng6 {[%emt 0:00:09]} 17. Kf1 {[%emt 0:00:21]} Nh4 {[%emt 0:00:34]} 18. Nxh4 {[%emt 0:01:20]} Qxh4 {[%emt 0:00:02]} 19. f3 $1 {[%emt 0:00:06]} Rf6 {[%emt 0:00:54] Black wants to play ...Rg6.} 20. Ke2 {[%emt 0:00:33]} Rg6 {[%emt 0:00:15]} 21. Rg1 {[%emt 0:00:40]} (21. Kd1 $1 $11) 21... Qh2 $36 {[%emt 0:00:14][%mdl 2048] Black is in control.} 22. Kf2 {[%emt 0:01:09] White does not recover from this.} (22. Qe1 $17) 22... Bf6 {[%emt 0:01:01] White must now prevent ...Bh3.} 23. Ne1 $2 {[%emt 0:02:19]} (23. Raf1 Bh3 24. Ne1) 23... Bh4+ $19 {[%emt 0:00:09]} 24. Kf1 {[%emt 0:00:02] [#]} Bh3 $1 {[%emt 0:00:10][%mdl 512] Strongly threatening ...Kh7.} 25. Rc1 {[%emt 0:01:02]} (25. Bc4 Kh8) 25... Kh7 {[%emt 0:01:34]} 26. Rc2 {[%emt 0:02:00]} Rag8 {[%emt 0:00:02] Hoping for ...Bxe1.} 27. c4 {[%emt 0:00:53]} Bxe1 {[%emt 0:00:19]} 28. Qxe1 {[%emt 0:00:11]} Rxg2 {[%emt 0:00:02] Weighted Error Value: White=0.84/Black=0.17 (very precise)} 0-1

[Event "Czech Open-Rapid 2022"]
[Site "Pardubice"]
[Date "2022.07.21"]
[Round "6.39"]
[White "Chrz, Pavel"]
[Black "Jelinek, Ctibor"]
[Result "1/2-1/2"]
[ECO "B06"]
[WhiteElo "1986"]
[BlackElo "1362"]
[Annotator "TA"]
[PlyCount "75"]
[EventDate "2022.07.20"]
[EventType "swiss"]
[EventCountry "CZE"]
[SourceTitle "playchess.com"]
[Source "ChessBase"]
[SourceQuality "1"]
[TimeControl "1200+10"]

{[%evp 15,75,60,63,0,74,58,68,65,69,-6,0,-13,-4,1,165,174,173,99,118,112,147,114,114,116,117,67,66,-7,-4,-7,35,0,0,0,42,42,39,40,43,39,39,25,54,43,77,59,60,65,75,17,63,41,54,52,50,50,53,53,85,0,50,0]} 1. e4 {[%emt 0:00:05]} g6 {[%emt 0:00:04]} 2. d4 {[%emt 0:00:05]} Bg7 {[%emt 0:00:02]} 3. Nc3 {[%emt 0:00:04]} d6 {[%emt 0:00:04]} 4. Be3 {[%emt 0:00:10]} Nf6 {[%emt 0:00:08]} 5. f3 {[%emt 0:00:07]} O-O {[%emt 0:00:13]} 6. Qd2 {[%emt 0:00:09]} e5 {[%emt 0:00:18]} 7. Nge2 {[%emt 0:00:25]} Nc6 {[%emt 0:00:11]} 8. d5 {[%emt 0:00:22]} Ne7 {[%emt 0:00:11]} 9. Bh6 {[%emt 0:00:04] B07: Pirc Defence: Miscellaneous Systems.} ({White should try} 9. O-O-O $14) 9... a6 {[%emt 0:00:30]} (9... Bxh6 $11 {remains equal.} 10. Qxh6 c6) 10. h4 {[%emt 0:00:06][%cal Oh4h5] [#]} Bxh6 $146 {[%emt 0:01:45]} ({Predecessor:} 10... c6 11. h5 cxd5 12. Bxg7 Kxg7 13. hxg6 fxg6 14. exd5 Neg8 15. Ng3 b5 16. Nce4 Nxe4 17. Nxe4 {1-0 (37) Arango,A (2128)-Estrella Becerra,F (1961) Medellin 2014}) 11. Qxh6 {[%emt 0:00:04][%cal Oh4h5]} Kh8 {[%emt 0:00:04]} 12. h5 {[%emt 0:02:02]} (12. g4 $14) 12... Neg8 {[%emt 0:00:28]} 13. Qd2 {[%emt 0:01:23]} Nxh5 {[%emt 0:00:07]} 14. g4 {[%emt 0:00:27]} Nf4 {[%emt 0:01:15] [#]} (14... Nhf6 $11 {and Black is okay.}) 15. Nxf4 $18 {[%emt 0:00:23]} exf4 {[%emt 0:00:01]} 16. Qh2 {[%emt 0:00:50]} (16. Qxf4 $18 Bd7 17. O-O-O (17. Qh2 h6 $16)) 16... h6 $16 {[%emt 0:00:29]} 17. Qxf4 {[%emt 0:00:49]} g5 {[%emt 0:00:24]} 18. Qd2 {[%emt 0:00:45] White is more active.} Qf6 {[%emt 0:00:26]} 19. Rh3 {[%emt 0:00:37]} Kg7 {[%emt 0:00:35]} 20. Be2 {[%emt 0:00:10]} (20. O-O-O $16) 20... Ne7 {[%emt 0:00:28]} 21. Qd3 {[%emt 0:01:47]} (21. O-O-O $14) 21... Ng6 $11 {[%emt 0:00:41] [#] Hoping for ...Nf4.} 22. Qd2 {[%emt 0:01:13]} Qf4 {[%emt 0:02:21]} 23. Qd4+ {[%emt 0:00:35]} Ne5 {[%emt 0:01:12][%cal Of7f5] White must now prevent ...f5!} 24. Qd2 {[%emt 0:03:08]} Qxd2+ {[%emt 0:01:07]} 25. Kxd2 {[%emt 0:00:02]} Ng6 {[%emt 0:00:30]} 26. Rah1 {[%emt 0:00:24]} Rh8 {[%emt 0:00:11]} 27. Nd1 {[%emt 0:00:23]} Nf4 {[%emt 0:00:28]} 28. R3h2 {[%emt 0:00:06]} f6 {[%emt 0:00:35]} 29. Ne3 {[%emt 0:00:12]} b5 {[%emt 0:00:33]} 30. Bd3 {[%emt 0:00:42]} Bd7 {[%emt 0:00:20]} 31. c3 {[%emt 0:02:00]} Ng6 {[%emt 0:00:30]} 32. Bc2 {[%emt 0:00:54]} (32. Nc2 $16) 32... Ne5 {[%emt 0:00:13]} (32... Nh4 $11) 33. Ke2 {[%emt 0:00:02]} Ng6 {[%emt 0:00:15]} 34. Kf2 {[%emt 0:00:22]} Nf4 {[%emt 0:00:32]} 35. Kg3 {[%emt 0:00:18]} Rae8 {[%emt 0:01:03]} 36. Bb1 {[%emt 0:01:51]} Bc8 {[%emt 0:00:12]} 37. Bc2 {[%emt 0:00:04]} Bd7 {[%emt 0:00:01]} 38. Bb1 {Blacks defense is rewarded with a draw.  Weighted Error Value: White=0.28 (precise) /Black=0.21 (precise)} (38. Ng2 $14) 1/2-1/2

[Event "Czech Open-Rapid 2022"]
[Site "Pardubice"]
[Date "2022.07.21"]
[Round "6.40"]
[White "Vokoun, Jan"]
[Black "Skoloud, Barnabas"]
[Result "1-0"]
[ECO "A10"]
[WhiteElo "2056"]
[BlackElo "1852"]
[Annotator "NA RC"]
[PlyCount "31"]
[EventDate "2022.07.20"]
[EventType "swiss"]
[EventCountry "CZE"]
[SourceTitle "playchess.com"]
[Source "ChessBase"]
[SourceQuality "1"]
[TimeControl "1200+10"]

1. c4 {[%emt 0:00:02]} f5 {[%emt 0:00:01]} 2. Nf3 {[%emt 0:00:48]} Nf6 {[%emt 0:00:07]} 3. Nc3 {[%emt 0:00:44]} e6 {[%emt 0:01:01]} 4. a3 {[%emt 0:01:17]} b6 {[%emt 0:00:17]} 5. g3 {[%emt 0:00:13]} Bb7 {[%emt 0:00:17]} 6. Bg2 {[%emt 0:00:01]} Be7 {[%emt 0:00:13]} 7. O-O {[%emt 0:00:22]} O-O {[%emt 0:00:07]} 8. d3 {[%emt 0:02:07]} d6 {[%emt 0:03:19]} 9. Re1 {[%emt 0:00:04]} e5 {[%emt 0:04:59]} 10. e4 {[%emt 0:00:12]} f4 {[%emt 0:00:40]} 11. d4 {[%emt 0:00:43]} exd4 {[%emt 0:00:20]} 12. Nxd4 {[%emt 0:00:15]} fxg3 {[%emt 0:00:29]} 13. hxg3 {[%emt 0:00:14]} Qc8 {[%emt 0:02:30]} 14. Nd5 {[%emt 0:02:36]} Nc6 {[%emt 0:02:45]} 15. Nxc6 {[%emt 0:01:13]} Nxd5 {[%emt 0:00:04]} 16. exd5 {[%emt 0:00:28]} 1-0

[Event "Czech Open-Rapid 2022"]
[Site "Pardubice"]
[Date "2022.07.21"]
[Round "6.41"]
[White "Sosnik, Sebastian"]
[Black "Babula, Matej"]
[Result "1-0"]
[ECO "B41"]
[WhiteElo "2255"]
[BlackElo "1748"]
[Annotator "TA"]
[PlyCount "49"]
[EventDate "2022.07.20"]
[EventType "swiss"]
[EventCountry "CZE"]
[SourceTitle "playchess.com"]
[Source "ChessBase"]
[SourceQuality "1"]
[TimeControl "1200+10"]

{[%evp 15,48,9,5,-16,52,47,56,42,69,67,62,55,127,113,125,125,195,102,114,100,90,82,84,72,89,0,0,11,802,772,589,121,29989,29990,29999]} 1. e4 {[%emt 0:00:03]} c5 {[%emt 0:00:01]} 2. Nf3 {[%emt 0:00:06]} e6 {[%emt 0:00:03]} 3. d4 {[%emt 0:00:09]} cxd4 {[%emt 0:00:02]} 4. Nxd4 {[%emt 0:00:02]} a6 {[%emt 0:00:01]} 5. c4 {[%emt 0:00:09]} Nf6 {[%emt 0:00:04]} 6. Nc3 {[%emt 0:00:03]} Bb4 {[%emt 0:00:07]} 7. Bd3 {[%emt 0:00:47] 7.Bd3 was played by the boomers.} Nc6 {[%emt 0:00:23]} 8. Nxc6 {[%emt 0:01:59]} dxc6 {[%emt 0:00:06]} 9. Bg5 {[%emt 0:02:34] B41: Sicilian: Kan Variation: 5 c4.} Qd4 {[%emt 0:03:09] [#]} (9... e5 $11) 10. O-O $146 {[%emt 0:01:59]} ({Predecessor:} 10. Qc2 h6 11. Be3 Qd8 12. h3 e5 13. a3 Bxc3+ 14. Qxc3 Qc7 15. O-O O-O 16. f4 Re8 17. fxe5 {½-½ (38) Ardelean,R (1721)-Balan,B (1805) Slanic Moldova 2017}) 10... Bxc3 {[%emt 0:00:38]} 11. Be3 {[%emt 0:01:26] White is slightly better.} Qe5 {[%emt 0:02:29]} 12. f4 {[%emt 0:00:07]} Qa5 {[%emt 0:00:05]} 13. bxc3 {[%emt 0:00:06]} Qxc3 {[%emt 0:00:09]} (13... e5 $1 $14) 14. e5 {[%emt 0:01:06]} Nd7 {[%emt 0:05:36]} 15. Rf3 {[%emt 0:01:53][%mdl 1024] White has strong compensation.} c5 {[%emt 0:03:03]} (15... Qb4 $16) 16. Rb1 {[%emt 0:03:16]} ({White should play} 16. Bf2 $18) 16... Qa5 $16 {[%emt 0:00:42]} 17. Qc2 {[%emt 0:02:18]} g6 {[%emt 0:01:07]} 18. h4 {[%emt 0:00:16][%cal Oh4h5]} Qc7 {[%emt 0:00:47]} 19. h5 {[%emt 0:00:08] 0x0.00144ab73f55dp-1022s more active pieces. The black rooks are badly placed.} b6 {[%emt 0:01:06]} 20. hxg6 {[%emt 0:00:26]} ({Better is} 20. Bf2 $16) 20... hxg6 $11 {[%emt 0:00:03]} 21. Bxg6 {[%emt 0:00:08][%cal Of3g3]} fxg6 $4 {[%emt 0:01:01][%mdl 8192]} (21... Bb7 $11 22. Rg3 O-O-O) 22. Qxg6+ $18 {[%emt 0:00:02]} Kd8 {[%emt 0:01:24]} 23. f5 $2 {[%emt 0:01:21]} (23. Qg7 $18 {is more deadly.} Qc6 24. Qxh8+ Kc7 25. Rd1) 23... Nxe5 $2 {[%emt 0:01:39][%mdl 8192] [#]} (23... Qxe5 $2 24. Bg5+ Kc7 25. Bf4 Qxf4 26. Rxf4 $18) (23... Bb7 $16 24. Rh3 Qxe5 25. Qg5+ Kc8 26. Rxh8+ (26. fxe6 Qxg5 27. Rxh8+ Kc7 $14) 26... Qxh8 27. fxe6 Ne5) 24. Bg5+ {[%emt 0:00:04]} Kd7 {[%emt 0:00:02]} 25. Qxe6# {Weighted Error Value: White=0.63/Black=0.48} 1-0

[Event "Czech Open-Rapid 2022"]
[Site "Pardubice"]
[Date "2022.07.21"]
[Round "6.42"]
[White "Meszaros, Ludek"]
[Black "Juchelka, Marek"]
[Result "0-1"]
[ECO "D02"]
[WhiteElo "2049"]
[BlackElo "1803"]
[Annotator "TA"]
[PlyCount "102"]
[EventDate "2022.07.20"]
[EventType "swiss"]
[EventCountry "CZE"]
[SourceTitle "playchess.com"]
[Source "ChessBase"]
[SourceQuality "1"]
[TimeControl "1200+10"]

{[%evp 13,102,39,47,39,89,44,52,63,63,32,64,49,60,62,47,31,31,37,37,31,35,29,30,29,33,27,27,27,29,0,0,0,0,0,0,0,0,0,41,0,0,0,24,0,0,0,7,0,0,0,0,0,0,0,0,0,0,-199,-199,-199,-199,-199,-105,-623,-623,-883,-746,-1729,-1514,-924,-134,-135,-138,-200,-200,-426,-199,-199,-199,-199,-199,-818,-404,-12841,-12842,-12842,-12843,-12840,-12842,-12841,-12837]} 1. d4 {[%emt 0:00:03]} d5 {[%emt 0:00:03]} 2. Nf3 {[%emt 0:00:02]} e6 {[%emt 0:00:02]} 3. c4 {[%emt 0:00:01]} f5 {[%emt 0:00:01]} 4. Bf4 {[%emt 0:00:05]} Nf6 {[%emt 0:00:04]} 5. Nc3 {[%emt 0:00:01]} Bd6 {[%emt 0:00:01]} 6. e3 {[%emt 0:00:08]} c6 {[%emt 0:00:02]} 7. Bxd6 {[%emt 0:00:04]} Qxd6 {[%emt 0:00:02]} 8. Bd3 {[%emt 0:00:05] A84: Dutch Defence: 2 c4 Miscellaneous.} Nbd7 {[%emt 0:00:08]} ({Black should play} 8... O-O $14) 9. Qc2 {[%emt 0:00:02]} Ne4 {[%emt 0:00:05]} 10. O-O {[%emt 0:00:22] White is slightly better.} O-O {[%emt 0:00:02]} 11. Rac1 {[%emt 0:00:21]} a6 {[%emt 0:00:21] [#]} 12. c5 $146 {[%emt 0:00:41]} ({Predecessor:} 12. Ne2 Kh8 13. b3 h6 14. Nh4 Rf7 15. cxd5 cxd5 16. Qc7 Qxc7 17. Rxc7 Ne5 18. Rxc8+ Rxc8 19. dxe5 {1-0 (51) Hoang,T (2323)-Nguyen,T (2054) Ba Dinh 2018}) 12... Qc7 {[%emt 0:00:05]} 13. b4 {[%emt 0:00:05]} e5 {[%emt 0:00:05]} 14. dxe5 {[%emt 0:00:47]} Nxe5 {[%emt 0:00:02]} 15. Nxe5 {[%emt 0:00:21]} Qxe5 {[%emt 0:00:02]} 16. Ne2 {[%emt 0:00:31]} Bd7 {[%emt 0:00:52]} 17. a4 {[%emt 0:00:23]} Rf6 {[%emt 0:00:38]} 18. f4 {[%emt 0:00:57]} Qe7 {[%emt 0:00:33]} 19. Bxe4 {[%emt 0:00:03]} fxe4 {[%emt 0:00:04]} 20. Nd4 {[%emt 0:00:27]} Raf8 {[%emt 0:00:35][%cal Ba8f8,Bf8f6,Bf6g6][%mdl 32]} 21. Rf2 {[%emt 0:00:38]} g5 {[%emt 0:00:13][%cal Rg5f4]} 22. g3 {[%emt 0:00:50]} gxf4 {[%emt 0:00:03]} 23. Rxf4 {[%emt 0:00:30]} Rxf4 {[%emt 0:00:04]} 24. gxf4 {[%emt 0:01:03]} Rf6 {[%emt 0:00:26]} 25. Kh1 {[%emt 0:00:17]} Rg6 {[%emt 0:00:15]} 26. Qf2 {[%emt 0:00:23]} (26. f5 $5 {[%cal Rf5g6]} Rg5 27. Qf2 $11) 26... Bh3 {[%emt 0:00:43][%cal Oa6a5]} 27. Rg1 {[%emt 0:00:20]} Kf7 {[%emt 0:01:22]} 28. Rxg6 {[%emt 0:00:27]} (28. Rg5 $5 {[%cal Rg5h5]}) 28... hxg6 $11 {[%emt 0:00:03][%mdl 4096] Endgame KQB-KQN} 29. Qg3 {[%emt 0:00:19]} Bd7 {[%emt 0:00:48][%cal Oa6a5]} 30. h4 {[%emt 0:00:13]} a5 {[%emt 0:00:21]} 31. h5 {[%emt 0:05:46]} gxh5 {[%emt 0:00:33]} 32. f5 {[%emt 0:00:06]} axb4 {[%emt 0:04:32]} 33. Qg6+ {[%emt 0:00:18]} Kf8 {[%emt 0:00:01]} 34. Qxh5 {[%emt 0:02:34]} Kg8 {[%emt 0:02:15] aiming for ...Qh7.} (34... Qxc5 35. f6 Qc1+ 36. Kg2 Qd2+ 37. Kf1 Qd3+ 38. Kf2 Qd2+ 39. Ne2 $18) 35. Kh2 $2 {[%emt 0:02:00]} (35. Qg6+ Kh8 36. Qg4 Qh7+ 37. Kg2 b3 38. Nxb3 Qxf5 39. Qxf5 Bxf5 $17) (35. Qg4+ $11 Qg7 36. Qf4) 35... Qh7 $1 $19 {[%emt 0:00:21]} (35... Qxc5 36. Qg6+ Kh8 37. Qf7 (37. Qf6+ Kg8 $16) 37... Qd6+ 38. Kg2 $18) 36. Qxh7+ {[%emt 0:00:02]} Kxh7 {[%emt 0:00:01] KB-KN} 37. Kg3 {[%emt 0:00:00] [#] Strongly threatening Kf4.} Kg7 {[%emt 0:00:01]} (37... Bxf5 $1 $19 38. Kf2 (38. Nxf5 $2 b3 $19) 38... Bh3) 38. Kf4 $2 {[%emt 0:00:03][%mdl 8192] White does not recover from this.} (38. Kf2 $17) 38... Kf6 {[%emt 0:00:02][%cal Od7f5]} 39. a5 {[%emt 0:00:08]} Bc8 {[%emt 0:01:51]} 40. Kg3 {[%emt 0:03:11]} Bxf5 {[%emt 0:00:11]} 41. Kf2 {[%emt 0:00:00]} Bg4 $2 {[%emt 0:00:17]} (41... Kg5 $19 {is more deadly.} 42. Ke2 Bd7) 42. Ke1 $17 {[%emt 0:00:03]} Bh3 {[%emt 0:01:04]} 43. Kd2 {[%emt 0:00:04] [#]} (43. a6 $17 bxa6 44. Nxc6) 43... Bf1 $1 $19 {[%emt 0:00:03] And now ...Bd3 would win.} 44. Nc2 $2 {[%emt 0:00:34]} (44. Kc1 {was necessary.}) 44... b3 {[%emt 0:00:14]} (44... Ke5 $142 {Threatens to win with ...Bb5.} 45. Kc1 Bc4) 45. Nd4 {[%emt 0:00:13]} Bc4 {[%emt 0:00:05]} 46. Kc3 {[%emt 0:00:05]} Kg5 {[%emt 0:00:09]} 47. Ne6+ $2 {[%emt 0:00:22]} (47. a6 b2 48. Kxb2 Bxa6 49. Kc3) 47... Kg4 {[%emt 0:00:05]} (47... Kh4 $142 {White must now prevent ...Kg3.} 48. a6 bxa6) 48. Nd8 {[%emt 0:00:02]} (48. Nd4 $142 Kg3 49. a6 Bxa6 50. Nxb3) 48... Ba6 {[%emt 0:00:16] Black is clearly winning.} 49. Ne6 {[%emt 0:00:49]} Kf3 {[%emt 0:00:05]} 50. Nd4+ {[%emt 0:00:40]} Kxe3 {[%emt 0:00:03] ( -> ...Kf2)} 51. Nxb3 {[%emt 0:00:02]} Kf2 {[%emt 0:00:18] Weighted Error Value: White=0.90/Black=0.51} 0-1